bitfinex/quotes_ETHUSD_20250625
["timestamp","ask_amount","ask_price","bid_price","bid_amount"]
[1750850474982,0.2064,2416.7,2416.1,0.2064]
[1750850475646,0.7859,2417.0,2416.2,1.813]
[1750850475647,0.55,2416.8,2416.2,1.813]
[1750850475847,0.2064,2416.4,2416.2,1.813]
[1750850476873,0.2064,2416.6,2416.2,1.813]
[1750850479143,0.2064,2416.6,2416.3,0.7851]
[1750850479372,10.0,2416.9,2416.3,0.7851]
[1750850479543,0.2064,2416.7,2416.3,0.9915]
[1750850485207,1.3103,2417.2,2416.3,0.7851]
[1750850485406,0.2064,2416.9,2416.4,0.2064]
[1750850485902,0.2064,2416.9,2416.2,1.813]
[1750850485903,0.7698,2417.5,2416.5,0.8029]
[1750850486106,0.2064,2417.1,2416.6,0.2064]
[1750850486307,0.2064,2417.1,2416.7,1.863]
[1750850487408,0.2064,2417.2,2416.8,0.2064]
[1750850488279,0.2064,2417.2,2416.9,0.7531]
[1750850490702,10.7781,2417.7,2416.9,0.7531]
[1750850490907,10.7781,2417.7,2417.0,0.2064]
[1750850490908,0.2064,2417.4,2417.0,0.2064]
[1750850493317,0.2064,2417.4,2417.1,0.7968]
[1750850493504,0.2064,2417.4,2417.2,1.863]
[1750850494484,10.2064,2417.7,2417.2,2.0694]
[1750850495906,0.2064,2417.7,2417.2,2.0694]
[1750850496211,11.3296,2418.1,2417.3,0.8206]
[1750850496417,0.2064,2417.8,2417.3,1.027]
[1750850498229,0.2064,2417.8,2417.4,0.7574]
[1750850498428,0.2064,2418.1,2417.7,0.2064]
[1750850498603,0.2064,2418.1,2417.8,1.862]
[1750850498939,0.2064,2418.1,2417.8,2.6194]
[1750850499526,1.07066975,2418.5,2417.8,2.6194]
[1750850499710,0.2064,2418.4,2417.9,0.2064]
[1750850500931,0.2064,2418.5,2418.0,0.2064]
[1750850501124,0.2064,2418.5,2418.1,0.827]
[1750850501931,0.31342634,2418.9,2418.1,0.827]
[1750850502123,0.2064,2418.7,2418.4,0.7796]
[1750850502323,0.2064,2418.7,2418.5,1.862]
[1750850503357,0.7945,2419.1,2418.5,2.0684]
[1750850503358,0.2064,2419.0,2418.5,2.0684]
[1750850503525,1.30649,2419.0,2418.5,2.0684]
[1750850504351,0.2064,2419.0,2418.6,0.7665]
[1750850504547,0.8118,2419.6,2418.6,0.7665]
[1750850504860,0.2064,2419.3,2419.0,0.7506]
[1750850505060,0.31252712,2419.7,2419.1,1.862]
[1750850505281,0.8173,2419.4,2419.2,1.862]
[1750850505562,0.8173,2419.4,2419.1,1.862]
[1750850505563,10.0,2419.2,2419.1,1.862]
[1750850505758,0.2064,2419.0,2418.9,1.862]
[1750850507367,0.2064,2419.0,2418.9,2.664]
[1750850508057,11.3702,2419.6,2418.9,2.664]
[1750850508258,0.2064,2419.3,2418.9,2.664]
[1750850508832,2.0506615,2419.5,2418.9,2.664]
[1750850509029,0.2064,2419.4,2418.9,2.664]
[1750850509259,0.8102,2419.3,2419.0,1.862]
[1750850509468,0.8102,2419.3,2418.9,1.862]
[1750850509469,0.2064,2419.1,2418.9,1.862]
[1750850509650,0.2064,2419.1,2418.9,1.861]
[1750850511139,0.2064,2419.2,2418.9,1.861]
[1750850511578,0.2064,2419.2,2419.0,1.861]
[1750850512077,0.2064,2419.3,2419.0,1.861]
[1750850512266,0.2064,2419.3,2419.1,0.7501]
[1750850512748,0.2064,2419.3,2419.2,1.861]
[1750850513070,0.2064,2419.5,2419.2,1.861]
[1750850513493,10.0,2419.8,2419.2,1.861]
[1750850513661,0.2064,2419.5,2419.2,1.861]
[1750850513983,0.7789,2419.5,2418.9,0.7756]
[1750850514149,0.2064,2419.4,2419.0,1.861]
[1750850515389,8.81901967,2419.3,2418.9,0.2064]
[1750850515604,1.0001,2419.1,2418.9,1.845]
[1750850516290,1.98201197,2419.1,2418.9,1.845]
[1750850517263,1.98201197,2419.1,2418.4,0.2064]
[1750850517465,0.2064,2418.6,2418.5,1.845]
[1750850519091,0.7937,2419.1,2418.5,1.845]
[1750850519262,0.2064,2418.8,2418.5,1.845]
[1750850522406,0.2064,2418.8,2418.6,0.7769]
[1750850523393,0.2064,2418.8,2418.5,1.845]
[1750850528913,0.2064,2418.5,2418.2,9.924]
[1750850529118,0.2064,2418.5,2418.3,1.845]
[1750850529416,0.55,2418.6,2418.3,1.845]
[1750850529608,1.13745,2418.6,2418.3,1.845]
[1750850530492,0.2064,2418.3,2418.2,11.769]
[1750850532698,0.2064,2418.3,2417.9,2.6226]
[1750850532895,0.7729,2418.3,2417.9,1.845]
[1750850533100,0.2064,2418.1,2417.9,1.845]
[1750850537343,0.2064,2418.1,2417.9,2.1279]
[1750850537536,0.756,2418.6,2418.0,0.8195]
[1750850537740,0.2064,2418.3,2418.0,0.8195]
[1750850541622,0.2064,2418.3,2417.9,1.845]
[1750850541623,15.70601967,2419.4,2418.2,0.2064]
[1750850541824,0.2064,2418.8,2418.3,0.8128]
[1750850542039,0.2064,2418.8,2418.4,2.0514]
[1750850544348,0.803,2418.7,2418.1,0.7777]
[1750850544531,9.36901967,2418.6,2418.2,1.845]
[1750850544742,0.2064,2418.4,2418.2,1.845]
[1750850549153,0.2064,2418.6,2418.3,0.8219]
[1750850551943,6.874,2418.9,2418.3,0.8219]
[1750850552267,0.2064,2418.8,2418.4,0.2064]
[1750850556258,0.2064,2418.8,2418.5,0.8315]
[1750850556463,7.422,2419.4,2418.5,0.8315]
[1750850556666,10.82312,2419.3,2418.5,0.8315]
[1750850559457,0.7578,2419.1,2418.5,0.8315]
[1750850560643,0.55,2419.0,2418.5,0.8315]
[1750850563060,0.55,2419.0,2418.2,1.845]
[1750850563061,10.55,2418.8,2418.3,0.7696]
[1750850563238,10.55,2418.8,2418.2,1.845]
[1750850563435,2.76880197,2418.7,2418.2,1.845]
[1750850564250,10.0,2418.6,2418.1,2.6383]
[1750850566385,0.2064,2418.3,2418.1,2.6383]
[1750850569771,0.2064,2418.3,2418.1,1.828]
[1750850573014,0.2064,2418.1,2417.7,2.6136]
[1750850573318,0.2064,2418.0,2417.7,2.6136]
[1750850573688,1.3561,2418.3,2417.7,2.6136]
[1750850573878,0.2064,2417.9,2417.7,2.6136]
[1750850574708,0.2064,2417.9,2417.7,1.828]
[1750850577709,6.06840463,2417.9,2417.7,1.828]
[1750850579223,11.3826,2417.8,2417.7,1.828]
[1750850579381,11.3826,2417.8,2417.3,0.8056]
[1750850579711,6.06840463,2417.5,2417.3,0.8056]
[1750850584040,0.2064,2417.5,2417.3,0.8056]
[1750850585143,6.871,2417.8,2417.3,0.8056]
[1750850585441,0.7764,2418.4,2417.4,0.7651]
[1750850585630,0.2064,2418.2,2417.7,0.2064]
[1750850585836,0.2064,2418.2,2417.8,2.5871]
[1750850589059,10.0,2418.1,2417.8,2.5871]
[1750850589340,0.2064,2418.0,2417.8,2.5871]
[1750850590148,0.2064,2418.0,2417.6,2.584]
[1750850590842,5.86200463,2417.9,2417.6,1.822]
[1750850592859,5.86200463,2417.9,2417.2,9.92]
[1750850592860,0.2064,2417.6,2417.2,9.92]
[1750850593027,5.86200463,2417.3,2417.1,1.822]
[1750850594345,0.2064,2417.4,2417.1,1.822]
[1750850599167,0.2064,2417.4,2416.9,0.9567]
[1750850600365,6.87,2417.6,2416.9,0.7503]
[1750850600527,0.2064,2417.2,2417.0,1.822]
[1750850602123,0.2064,2417.2,2416.8,0.2064]
[1750850602124,0.773,2417.1,2416.8,0.2064]
[1750850602369,0.2064,2416.9,2416.5,1.822]
[1750850605962,0.2064,2416.9,2416.6,1.0233]
[1750850607150,10.0,2417.3,2416.6,0.8169]
[1750850608638,0.55,2417.2,2416.6,0.8169]
[1750850610484,0.8257,2417.1,2416.5,1.822]
[1750850610688,10.0,2417.0,2416.5,1.822]
[1750850611488,11.82447,2417.0,2416.5,1.822]
[1750850612058,12.58247,2417.0,2416.4,1.82]
[1750850612892,12.58247,2417.0,2416.5,0.8272]
[1750850617094,0.2064,2416.7,2416.5,0.8272]
[1750850622992,0.2064,2417.0,2416.5,1.0336]
[1750850631381,5.86648145,2417.0,2416.5,0.8272]
[1750850631577,0.2064,2416.9,2416.5,0.8272]
[1750850634910,10.7983,2416.6,2416.1,1.82]
[1750850635080,0.2064,2416.2,2416.1,1.82]
[1750850636072,0.2064,2416.4,2416.1,1.82]
[1750850641832,0.2064,2416.4,2416.2,0.8179]
[1750850642592,10.0,2417.0,2416.2,0.8179]
[1750850642921,0.2064,2416.7,2416.3,0.2064]
[1750850643335,0.8194,2417.4,2416.4,0.7863]
[1750850643500,0.2064,2417.0,2416.7,0.8113]
[1750850643698,0.2064,2417.0,2416.8,1.817]
[1750850649341,0.2064,2417.0,2416.7,0.8113]
[1750850649544,0.2064,2417.0,2416.9,1.817]
[1750850650733,10.7591,2417.6,2416.9,1.817]
[1750850650904,11.06698095,2417.6,2416.9,1.817]
[1750850652009,1.06698095,2417.6,2416.9,1.817]
[1750850653645,11.06698095,2417.6,2416.9,1.817]
[1750850654026,1.06698095,2417.6,2416.9,1.817]
[1750850654327,11.06698095,2417.6,2416.9,1.817]
[1750850655141,1.06698095,2417.6,2416.9,1.817]
[1750850655743,1.06698095,2417.6,2417.0,0.8255]
[1750850655907,11.06698095,2417.6,2417.0,0.8255]
[1750850656734,1.06698095,2417.6,2417.0,0.8255]
[1750850657042,7.16888095,2417.6,2417.0,0.8255]
[1750850657425,10.30788095,2417.6,2417.0,0.8255]
[1750850658348,0.30788095,2417.6,2417.0,0.8255]
[1750850658644,10.0,2417.7,2417.0,0.8255]
[1750850658958,8.2238,2417.8,2417.0,0.8255]
[1750850659154,10.0,2417.7,2417.0,0.8255]
[1750850659844,10.3068193,2417.7,2417.0,0.8255]
[1750850660650,0.2064,2417.3,2417.0,0.8255]
[1750850663214,0.3068193,2417.7,2417.0,0.8255]
[1750850663419,0.2064,2417.5,2417.1,0.2064]
[1750850663748,0.2064,2417.5,2417.2,0.7777]
[1750850663921,0.2064,2417.9,2417.5,0.7582]
[1750850664261,0.2064,2418.1,2417.7,0.7582]
[1750850665055,0.2064,2418.3,2417.8,0.2064]
[1750850665232,0.2064,2418.3,2417.9,0.7552]
[1750850666634,1.64742,2419.3,2417.9,0.7552]
[1750850666845,0.7511,2419.7,2418.0,0.55]
[1750850667051,0.7511,2419.7,2418.2,0.7958]
[1750850667245,0.55,2419.6,2418.2,0.7958]
[1750850667646,7.6081,2419.7,2418.2,0.7958]
[1750850667848,0.76081,2419.6,2418.3,0.7958]
[1750850668162,1.07466553,2419.6,2418.3,0.7958]
[1750850669272,0.76081,2419.6,2418.3,0.7958]
[1750850669476,0.7511,2419.7,2418.3,0.7958]
[1750850669770,0.55,2419.6,2418.3,0.7958]
[1750850671132,0.55,2419.2,2418.4,1.812]
[1750850672841,0.55,2419.2,2418.5,1.812]
[1750850673665,10.55,2419.2,2418.5,1.812]
[1750850674261,12.36553,2419.2,2418.5,1.812]
[1750850675271,12.73553,2419.2,2418.5,1.812]
[1750850676671,0.2064,2418.7,2418.5,1.812]
[1750850677675,0.2064,2418.7,2418.1,0.8117]
[1750850677676,0.55,2418.6,2418.1,0.8117]
[1750850677881,0.37,2418.9,2418.2,1.812]
[1750850678178,0.37,2418.9,2418.3,0.8117]
[1750850678179,10.37,2418.9,2418.3,0.8117]
[1750850678532,0.37,2418.9,2418.3,0.8117]
[1750850681173,0.55,2419.0,2418.3,0.8117]
[1750850685043,0.55,2419.0,2417.8,0.769]
[1750850685247,0.55,2418.8,2417.9,1.812]
[1750850685630,0.7746,2418.7,2417.9,1.812]
[1750850685768,0.7746,2418.7,2418.0,0.8147]
[1750850688190,0.2064,2418.3,2418.0,0.8147]
[1750850689774,0.55,2418.6,2418.0,0.8147]
[1750850693114,0.92,2418.6,2418.0,0.8147]
[1750850694802,0.2064,2418.2,2418.0,0.8147]
[1750850705093,0.92,2418.6,2418.0,0.8147]
[1750850705299,0.2064,2418.1,2417.9,1.812]
[1750850705619,0.2064,2418.1,2417.8,0.8301]
[1750850705923,0.55,2418.1,2417.8,1.808]
[1750850706420,1.68041,2418.1,2417.8,1.808]
[1750850707487,0.55,2417.9,2417.8,1.808]
[1750850708306,0.8525781,2417.9,2417.8,1.808]
[1750850709225,0.7541,2418.2,2417.8,1.808]
[1750850709427,0.55,2418.2,2417.8,2.5914]
[1750850709626,1.36993,2418.2,2417.8,2.5914]
[1750850709831,0.55,2418.3,2417.8,2.5914]
[1750850712026,0.30957016,2418.3,2417.8,2.5914]
[1750850712243,0.55,2418.5,2417.8,2.5914]
[1750850712448,0.2064,2418.0,2417.8,2.5914]
[1750850716551,0.2064,2418.2,2417.8,2.7978]
[1750850719840,0.2064,2418.2,2417.9,1.808]
[1750850720537,0.2064,2418.2,2418.0,1.808]
[1750850720845,6.41015034,2418.5,2418.0,1.808]
[1750850722152,0.2064,2418.0,2417.8,1.808]
[1750850722947,0.7943,2418.4,2417.8,1.808]
[1750850722948,10.55,2418.1,2417.8,1.808]
[1750850723149,1.64101503,2418.0,2417.8,1.808]
[1750850723354,12.44911503,2418.0,2417.8,1.808]
[1750850725054,0.2064,2417.8,2417.5,10.6994]
[1750850725258,0.2064,2417.8,2417.6,1.808]
[1750850726357,0.2064,2417.8,2417.5,10.6994]
[1750850726543,0.2064,2417.8,2417.6,1.808]
[1750850726757,0.2064,2417.8,2417.7,1.808]
[1750850730663,0.2064,2417.8,2417.5,10.6994]
[1750850730828,10.55,2418.1,2417.7,1.804]
[1750850731027,1.72121503,2418.0,2417.7,1.804]
[1750850731353,1.72121503,2418.0,2417.8,1.804]
[1750850731858,0.2064,2417.8,2417.5,10.6994]
[1750850732055,10.55,2418.1,2417.6,1.804]
[1750850732260,0.2064,2417.7,2417.6,1.804]
[1750850732753,10.0,2418.5,2417.7,0.8119]
[1750850732754,0.2064,2418.0,2417.7,0.8119]
[1750850733528,1.11029771,2418.6,2417.7,0.8119]
[1750850733760,0.2064,2418.1,2417.7,7.8583]
[1750850733931,0.2064,2418.1,2417.8,0.7899]
[1750850736066,0.8289,2419.7,2418.1,0.7899]
[1750850736240,0.2064,2419.1,2418.3,10.0]
[1750850736446,0.2064,2419.1,2418.6,0.2064]
[1750850736657,0.2064,2419.1,2418.7,2.5939]
[1750850739159,0.7834,2419.6,2418.8,0.8169]
[1750850739354,0.2064,2419.2,2418.8,0.8169]
[1750850739559,0.7834,2419.6,2418.8,0.8169]
[1750850739755,0.2064,2419.3,2418.9,0.2064]
[1750850740070,1.08883967,2419.8,2419.0,0.7914]
[1750850740241,0.2064,2419.5,2419.0,0.9978]
[1750850742970,8.639,2419.4,2419.0,0.9978]
[1750850743470,8.639,2419.4,2419.1,0.814]
[1750850744035,0.2064,2419.5,2419.1,0.814]
[1750850744239,8.639,2419.4,2419.1,0.814]
[1750850746551,9.92,2420.0,2419.1,0.814]
[1750850746802,7.0414,2419.9,2419.6,0.2064]
[1750850749789,9.92,2420.0,2419.7,0.8075]
[1750850749957,6.833,2419.8,2419.7,0.8075]
[1750850750289,9.92,2420.0,2419.7,0.8075]
[1750850750475,9.92,2420.0,2419.7,1.0139]
[1750850750476,6.833,2419.9,2419.7,1.0139]
[1750850750800,9.92,2420.0,2419.7,1.0139]
[1750850750801,9.92,2420.0,2419.8,0.8155]
[1750850751002,10.2064,2420.3,2419.8,0.8155]
[1750850751300,8.635,2420.2,2420.1,0.2064]
[1750850754398,8.635,2420.2,2419.9,0.2064]
[1750850757970,8.635,2420.2,2419.8,0.8155]
[1750850758198,8.635,2420.2,2420.1,0.2064]
[1750850758695,1.803,2420.2,2420.1,1.026]
[1750850758899,8.632,2420.2,2420.1,1.026]
[1750850760397,6.829,2420.2,2420.1,1.026]
[1750850760698,6.828,2420.2,2420.1,1.026]
[1750850761403,10.2064,2420.8,2420.1,1.026]
[1750850761706,1.798,2420.5,2420.2,0.8245]
[1750850761909,6.828,2420.4,2420.2,0.8245]
[1750850762102,6.828,2420.4,2420.3,0.2064]
[1750850763505,1.798,2420.8,2420.3,0.2064]
[1750850763706,1.798,2420.8,2420.4,0.7882]
[1750850764007,6.827,2420.7,2420.4,0.7882]
[1750850764187,9.917,2420.9,2420.7,0.2064]
[1750850764390,9.917,2420.9,2420.8,0.7882]
[1750850764614,1.798,2421.0,2420.8,0.7882]
[1750850764615,0.2064,2421.3,2420.8,0.7882]
[1750850764798,6.827,2421.2,2421.1,0.2064]
[1750850768313,6.827,2421.2,2421.1,1.0242]
[1750850768894,0.2176107,2421.5,2421.1,1.0242]
[1750850769214,6.824,2421.4,2421.1,1.0242]
[1750850769414,0.2176107,2421.5,2421.3,0.2064]
[1750850769617,6.824,2421.4,2421.3,0.2064]
[1750850769981,0.2176107,2421.5,2421.3,0.2064]
[1750850770179,0.2176107,2421.5,2421.4,0.2064]
[1750850770384,7.0416107,2421.5,2421.4,0.2064]
[1750850772029,7.0416107,2421.5,2421.4,0.966]
[1750850772685,0.2176107,2421.5,2421.4,0.966]
[1750850772885,7.0406107,2421.5,2421.4,0.7596]
[1750850774818,0.2176107,2421.5,2421.4,0.7596]
[1750850775010,7.0396107,2421.5,2421.4,0.7596]
[1750850777240,7.0396107,2421.5,2420.7,0.55]
[1750850777438,7.0396107,2421.5,2420.8,0.7756]
[1750850778772,6.82,2421.4,2420.8,0.7756]
[1750850778914,0.2176107,2421.5,2420.9,0.55]
[1750850779261,0.2176107,2421.5,2421.0,0.7867]
[1750850782231,0.2176107,2421.5,2421.1,0.7867]
[1750850782420,0.2176107,2421.5,2421.3,0.7867]
[1750850782951,0.2176107,2421.5,2421.4,0.2064]
[1750850783158,0.2176107,2421.5,2421.4,1.0031]
[1750850783404,2.5636107,2421.5,2420.2,0.8058]
[1750850783689,0.8168,2421.2,2420.2,0.8058]
[1750850783978,8.658,2421.1,2420.2,0.8058]
[1750850790967,0.7543,2421.0,2420.2,0.8058]
[1750850791261,0.7543,2421.0,2420.0,0.7889]
[1750850791553,0.7543,2420.9,2419.6,0.7889]
[1750850791755,0.7543,2420.7,2419.6,0.7889]
[1750850791957,1.813,2420.6,2419.6,0.7889]
[1750850793472,1.813,2420.6,2420.3,0.2064]
[1750850794460,0.7543,2420.7,2420.3,0.2064]
[1750850794620,6.86,2420.5,2420.3,0.2064]
[1750850801352,6.86,2420.5,2420.0,0.7534]
[1750850801353,6.853,2420.5,2420.0,0.7534]
[1750850801554,6.853,2420.5,2420.4,0.2064]
[1750850802950,0.7528,2420.4,2419.5,0.8048]
[1750850803282,2.5658,2420.3,2419.5,0.8048]
[1750850804526,8.698,2420.2,2419.5,0.8048]
[1750850805355,8.698,2420.1,2419.5,0.8048]
[1750850805563,6.884,2420.0,2419.5,0.8048]
[1750850806969,6.884,2420.0,2419.1,0.7713]
[1750850806970,0.8188,2419.9,2419.1,0.7713]
[1750850807334,0.8188,2419.9,2418.9,0.7713]
[1750850810460,8.696,2419.8,2418.9,0.7713]
[1750850810770,8.696,2419.7,2418.9,0.7713]
[1750850811146,8.694,2419.6,2418.9,0.7713]
[1750850811546,0.7538,2420.3,2419.0,0.55]
[1750850811834,8.694,2420.2,2419.3,0.7618]
[1750850812464,0.7538,2420.3,2419.3,0.7618]
[1750850812650,8.696,2420.2,2419.3,0.7618]
[1750850812965,8.696,2420.2,2420.0,0.2064]
[1750850813168,0.7538,2420.3,2420.0,0.2064]
[1750850813336,10.8799,2420.5,2419.7,0.8022]
[1750850813664,6.88,2420.2,2419.7,0.8022]
[1750850813852,1.814,2420.4,2420.2,0.2064]
[1750850814258,6.88,2420.3,2420.2,0.2064]
[1750850817377,9.911,2420.5,2420.2,0.2064]
[1750850817583,6.875,2420.4,2420.2,0.2064]
[1750850817785,6.875,2420.4,2420.1,0.7983]
[1750850817979,0.7988,2420.7,2420.3,0.2064]
[1750850818186,6.873,2420.6,2420.3,0.2064]
[1750850818387,6.873,2420.6,2420.1,0.7983]
[1750850818545,1.814,2420.7,2420.5,0.2064]
[1750850818739,6.873,2420.6,2420.5,0.2064]
[1750850819238,6.872,2420.6,2420.5,0.2064]
[1750850819441,1.814,2420.8,2420.5,0.2064]
[1750850819641,6.871,2420.7,2420.5,0.2064]
[1750850819853,6.871,2420.7,2420.1,0.7983]
[1750850820054,6.871,2420.7,2420.6,0.2064]
[1750850821294,0.782,2420.6,2420.4,0.2064]
[1750850824568,8.69,2420.5,2420.4,0.2064]
[1750850825682,1.0165,2420.8,2420.4,0.2064]
[1750850825870,8.689,2420.7,2420.4,0.2064]
[1750850826070,8.689,2420.7,2420.1,0.7704]
[1750850826270,8.689,2420.7,2420.6,0.2064]
[1750850827557,8.686,2420.7,2420.6,0.2064]
[1750850828694,0.8101,2421.0,2420.6,0.2064]
[1750850828849,8.686,2420.9,2420.6,0.2064]
[1750850829188,6.862,2420.8,2420.5,0.7724]
[1750850829553,6.862,2420.8,2420.7,0.2064]
[1750850830281,6.861,2420.8,2420.7,0.2064]
[1750850830777,0.7744,2421.2,2420.7,0.2064]
[1750850830982,6.858,2420.8,2420.7,0.2064]
[1750850831186,6.858,2420.8,2420.5,0.7724]
[1750850831373,6.858,2420.8,2420.7,0.2064]
[1750850833084,6.856,2420.8,2420.7,0.2064]
[1750850840404,0.9808,2421.2,2420.7,0.2064]
[1750850840579,8.663,2421.1,2420.7,0.2064]
[1750850843204,8.659,2421.0,2420.7,0.8296]
[1750850843370,0.7744,2421.2,2420.9,0.2064]
[1750850843572,8.658,2421.1,2420.9,0.2064]
[1750850843773,0.7744,2421.2,2420.9,0.2064]
[1750850844090,10.1184,2421.4,2420.9,0.2064]
[1750850844293,1.821,2421.1,2420.9,0.2064]
[1750850844810,6.836,2421.0,2420.9,0.2064]
[1750850846100,10.6792,2421.4,2420.9,0.2064]
[1750850846409,8.653,2421.3,2420.9,0.2064]
[1750850846698,9.912,2421.4,2421.3,0.2064]
[1750850847005,18.565,2421.4,2421.3,0.2064]
[1750850847213,9.912,2421.4,2421.3,0.2064]
[1750850847502,18.564,2421.4,2421.3,0.2064]
[1750850847673,9.912,2421.4,2421.3,0.2064]
[1750850848077,18.563,2421.4,2421.3,0.2064]
[1750850849778,19.3466,2421.4,2420.7,0.8296]
[1750850849981,19.3466,2421.4,2421.0,0.2064]
[1750850854421,20.51021767,2421.4,2421.0,0.2064]
[1750850854797,6.61875071,2421.3,2421.0,0.2064]
[1750850858827,0.7735,2421.3,2421.0,0.2064]
[1750850860905,8.624,2421.2,2421.0,0.2064]
[1750850862010,8.624,2421.1,2421.0,0.2064]
[1750850863336,0.7735,2421.3,2421.0,0.2064]
[1750850863543,8.624,2421.1,2421.0,0.2064]
[1750850867342,9.912,2421.4,2421.0,1.0264]
[1750850867508,1.798,2421.1,2421.0,1.0264]
[1750850867713,1.798,2421.1,2421.0,0.2064]
[1750850868446,2.5865,2421.1,2421.0,0.2064]
[1750850869947,9.42942219,2421.1,2420.7,0.2064]
[1750850870126,6.826,2421.0,2420.7,0.2064]
[1750850872312,8.623,2420.9,2420.3,0.8169]
[1750850872811,8.623,2420.9,2420.8,0.2064]
[1750850873928,8.623,2420.9,2420.3,0.8169]
[1750850874116,8.623,2420.9,2420.6,0.2064]
[1750850875542,0.7823,2420.8,2420.6,0.2064]
[1750850877819,0.7823,2420.8,2419.9,0.7842]
[1750850877820,0.9887,2420.8,2420.4,0.2064]
[1750850878552,5.84525071,2420.7,2420.4,0.2064]
[1750850878752,6.825,2420.6,2420.4,0.2064]
[1750850880764,0.8032,2420.5,2420.4,0.2064]
[1750850881068,0.2064,2420.4,2420.0,0.2064]
[1750850881240,2.15054507,2420.5,2420.2,0.2064]
[1750850881241,8.623,2420.3,2420.2,0.2064]
[1750850881561,8.623,2420.3,2420.2,0.7848]
[1750850881724,8.623,2420.3,2420.2,0.9912]
[1750850882460,5.84525071,2420.7,2420.2,0.9912]
[1750850882669,6.53336578,2420.7,2420.4,0.2064]
[1750850882956,8.622,2420.6,2420.4,0.2064]
[1750850883157,8.622,2420.5,2420.4,0.2064]
[1750850883359,6.53336578,2420.7,2420.4,0.2064]
[1750850883738,8.622,2420.6,2420.4,0.2064]
[1750850884141,8.622,2420.5,2420.4,0.2064]
[1750850884542,9.4327,2420.5,2420.4,0.2064]
[1750850884763,10.96049507,2420.5,2420.4,0.2064]
[1750850885344,10.96049507,2420.5,2419.8,0.761]
[1750850885540,9.6391,2420.5,2420.0,0.2064]
[1750850886547,8.622,2420.4,2420.0,0.2064]
[1750850886961,1.0171,2420.5,2420.0,0.2064]
[1750850887270,8.622,2420.4,2420.2,0.2064]
[1750850887446,0.8107,2420.5,2420.2,0.2064]
[1750850887647,8.622,2420.4,2420.2,0.2064]
[1750850887968,8.622,2420.3,2420.2,0.2064]
[1750850888464,0.8107,2420.5,2420.2,0.2064]
[1750850888669,8.622,2420.3,2420.2,0.2064]
[1750850889165,0.8107,2420.5,2420.2,0.2064]
[1750850889370,8.622,2420.3,2420.2,0.2064]
[1750850889751,1.49693507,2420.5,2420.2,0.2064]
[1750850890156,8.622,2420.4,2420.2,0.2064]
[1750850890560,14.46725071,2420.4,2420.2,0.2064]
[1750850890762,0.7693,2420.3,2419.6,0.8184]
[1750850891072,0.7693,2420.3,2419.9,0.2064]
[1750850891273,1.54429507,2420.2,2419.9,0.2064]
[1750850891451,0.7693,2420.3,2419.9,0.2064]
[1750850894464,5.84525071,2420.1,2419.4,0.7539]
[1750850894661,0.7922,2419.9,2419.7,0.2064]
[1750850894862,8.40397071,2419.8,2419.2,0.8088]
[1750850895078,1.797,2419.8,2419.5,0.2064]
[1750850897554,8.622,2419.7,2419.5,0.2064]
[1750850898285,0.2064,2420.0,2419.5,0.2064]
[1750850898483,8.622,2419.9,2419.5,0.2064]
[1750850898872,0.2064,2420.0,2419.5,0.2064]
[1750850899077,8.622,2419.9,2419.5,0.2064]
[1750850899564,0.8076,2419.8,2419.5,0.2064]
[1750850900348,8.622,2419.7,2419.5,0.2064]
[1750850900653,11.0329,2420.0,2419.5,0.2064]
[1750850900850,8.622,2419.9,2419.5,0.9845]
[1750850901051,11.0329,2420.0,2419.5,0.9845]
[1750850901284,8.622,2419.9,2419.5,0.9845]
[1750850901493,10.6815,2420.3,2419.5,0.7781]
[1750850901698,9.911,2420.3,2420.0,0.2064]
[1750850901891,1.797,2420.4,2420.2,0.2064]
[1750850902191,6.825,2420.3,2420.2,0.7781]
[1750850902853,6.825,2420.3,2420.2,0.9845]
[1750850904666,1.798,2420.8,2420.3,0.7812]
[1750850905284,6.825,2420.7,2420.3,0.7812]
[1750850905794,6.825,2420.6,2420.3,0.7812]
[1750850906169,6.825,2420.6,2420.5,0.2064]
[1750850907084,6.825,2420.6,2420.5,0.9871]
[1750850909290,6.823,2420.6,2420.5,0.9871]
[1750850910163,9.913,2421.2,2420.5,0.9871]
[1750850910387,8.62,2421.1,2420.7,0.2064]
[1750850910587,6.823,2421.0,2420.5,0.7807]
[1750850911314,8.4966,2421.0,2420.8,0.2064]
[1750850911490,0.7547,2420.9,2420.8,0.2064]
[1750850916797,6.823,2421.0,2420.3,0.8042]
[1750850920510,6.823,2421.0,2419.4,5.84525071]
[1750850920511,5.84525071,2420.6,2419.9,0.8309]
[1750850920706,9.4117,2420.5,2419.9,0.8309]
[1750850922923,8.616,2420.5,2419.9,0.8309]
[1750850926935,0.8201,2420.7,2420.4,0.2064]
[1750850927230,8.616,2420.6,2420.4,0.2064]
[1750850927924,8.616,2420.6,2420.1,0.7533]